Workbook

Sheet Доходы
E1: "УТВЕРЖДАЮ"
E2: Глава Огоджинского сельсовета
E3: ________________ Э.С.Караханян
A5: Сводная бюджетная роспись на 2022 год и плановый период 2023-2024 гг.
A6: Администрация Огоджинского сельсовета
A7: Доходы
A8: Наименование | B8: Экономи-ческая классифи-кация расходов | C8: ВСЕГО | D8: 2022 год | E8: 2023 год | F8: 2024 год
A9: Налог на доходы физических лиц | B9: 1 01 02010 01 1000 110 | C9: =D9+E9+F9 -> 4523000 | D9: 1389000 | E9: 1505000 | F9: 1629000
A10: Налог на имущество физических лиц | B10: 1 06 01030 10 1000 110 | C10: =D10+E10+F10 -> 12000 | D10: 4000 | E10: 4000 | F10: 4000
A11: Земельный налог | B11: 1 06 06000 00 0000 110 | C11: 76000 | D11: 27000 | E11: 25000 | F11: 24000
A12: Государственная пошлина за совершение нотариальных действий | B12: 1 08 04020 01 1000 110 | C12: 63000 | D12: 21000 | E12: 21000 | F12: 21000
A13: Доходы получаемые в виде арендной платы | B13: 1 11 05013 10 0000 120 | C13: 0 | D13: 0 | E13: 0 | F13: 0
A14: Доходы от сдачив аренду имущества | B14: 1 11 05035 10 0000 120 | C14: 313200 | D14: 104400 | E14: 104400 | F14: 104400
A15: Плата за негативное воздействие на окружающую среду | B15: 1 12 01000 01 0000 120 | C15: 0 | D15: 0 | E15: 0 | F15: 0
A16: Прочие доходы от оказания платных услуг | B16: 1 13 01995 10 0000 130 | C16: 0 | D16: 0 | E16: 0 | F16: 0
A17: Прочие доходы от компенсации затрат поселения | B17: 1 13 02995 20 0000 130 | C17: 0 | D17: 0 | E17: 0 | F17: 0
A18: Дотация бюджетам поселений на выравнивание уровня бюджетной обеспеченности | B18: 2 02 15001 10 0000 150 | C18: 3306733.34 | D18: 1068281.78 | E18: 1101986.45 | F18: 1136465.11
A19: Субвенции бюджетам поселений на государственную регистрацию актов гражданского состояния | B19: 2 02 35930 10 0000 150 | C19: 2400 | D19: 800 | E19: 800 | F19: 800
A20: Субвенции бюджетам поселений на осуществление первичного воинского учета | B20: 2 02 35118 10 0000 150 | C20: 425900 | D20: 137000 | E20: 141800 | F20: 147100
A21: Прочие межбюджетные трансферты | B21: 2 02 49999 10 0000 150 | C21: 12074090 | D21: 4136000 | E21: 4027930 | F21: 3910160
A22: Итого | C22: 20796323.34 | D22: =D9+D10+D11+D12+D13+D14+D18+D19+D20+D21 -> 6887481.78 | E22: =E9+E10+E11+E12+E13+E14+E18+E19+E20+E21 -> 6931916.45 | F22: =F9+F10+F11+F12+F13+F14+F18+F19+F20+F21 -> 6976925.11
A24: Глава Огоджинского сельсовета | B24: Э.С.Караханян

Sheet Расходы
I1: "УТВЕРЖДАЮ"
I2: Глава Огоджинского сельсовета
I3: ____________ Э.С.Караханян
A5: Сводная бюджетная роспись на 2022 год и плановый период 2023-2024 гг.
A6: АдминистрацияОгоджинского сельсовета
A7: Расходы
A8: Наименование | B8: Код главы | C8: Раздел | D8: Подраздел | E8: Целевая статья расходов | F8: Вид расходов | G8: ВСЕГО | H8: 2022 год | I8: 2023 год | J8: 2024 год
A9: Заработная плата | B9: 010 | C9: 0100 | D9: 0102 | E9: 8880080010 | F9: 121 | G9: =H9+I9+J9 -> 3377100 | H9: 1125700 | I9: 1125700 | J9: 1125700
A10: Начисления на выплаты по оплате труда | B10: 010 | C10: 0100 | D10: 0102 | E10: 8880080010 | F10: 129 | G10: =H10+I10+J10 -> 1020000 | H10: 340000 | I10: 340000 | J10: 340000
A11: ИТОГО | G11: 4397100 | H11: =H9+H10 -> 1465700 | I11: =I9+I10 -> 1465700 | J11: =J9+J10 -> 1465700
A12: Заработная плата | B12: 010 | C12: 0100 | D12: 0104 | E12: 8880080040 | F12: 121 | G12: 2079600 | H12: 693200 | I12: 693200 | J12: 693200
A13: Прочие выплаты | B13: 010 | C13: 0100 | D13: 0104 | E13: 8880080040 | F13: 122 | G13: 0 | H13: 0 | I13: 0 | J13: 0
A14: начисления на выплаты по оплате труда | B14: 010 | C14: 0100 | D14: 0104 | E14: 8880080040 | F14: 129 | G14: 627900 | H14: 209300 | I14: 209300 | J14: 209300
A15: Прочие закупки товаров, работ, услуг для гос.нужд | B15: 010 | C15: 0100 | D15: 0104 | E15: 8880080040 | F15: 244 | G15: 1574741.56 | H15: 0 | I15: 767516.45 | J15: 807225.11
A16: Уплата налога на имущество, земельного налога | B16: 010 | C16: 0100 | D16: 0104 | E16: 8880080040 | F16: 851 | G16: 0 | H16: 0 | I16: 0 | J16: 0
A17: ИТОГО | G17: 4282241.56 | H17: =H12+H14+H15 -> 902500 | I17: =I12+I14+I15 -> 1670016.45 | J17: =J12+J14+J15 -> 1709725.11
A18: Перечисления другим бюджетам бюджетной системы Российской Федерации | B18: 010 | C18: 0100 | D18: 0106 | E18: 8880080300 | F18: 540 | G18: 24000 | H18: 12000 | I18: 12000 | J18: 0
A19: ИТОГО | G19: 36000 | H19: 12000 | I19: 12000 | J19: 12000
A20: Обеспечение проведения выборов и референдумов | B20: 010 | C20: 0100 | D20: 0107 | E20: 8880080100 | F20: 244 | G20: 0 | H20: 0 | I20: 0 | J20: 0
A21: ИТОГО | G21: 0 | H21: =H20 -> 0 | I21: =I20 -> 0 | J21: =J20 -> 0
A22: Резервные фонды | B22: 010 | C22: 0100 | D22: 0111 | E22: 8880010620 | F22: 800 | G22: 27000 | H22: 5000 | I22: 5000 | J22: 17000
A23: ИТОГО | G23: 27000 | H23: =H22 -> 5000 | I23: =I22 -> 5000 | J23: =J22 -> 17000
A24: Заработная плата | B24: 010 | C24: 0100 | D24: 0113 | E24: 8880080140 | F24: 111 | G24: 3810750 | H24: 1270250 | I24: 1270250 | J24: 1270250
A25: Прочие выплаты | B25: 010 | C25: 0100 | D25: 0113 | E25: 8880080140 | F25: 112 | G25: 0 | H25: 0 | I25: 0 | J25: 0
A26: Начисления на выплаты по оплате труда | B26: 010 | C26: 0100 | D26: 0113 | E26: 8880080140 | F26: 119 | G26: 1150950 | H26: 383650 | I26: 383650 | J26: 383650
A27: Прочие закупки товаров, работ, услуг для гос.нужд | B27: 010 | C27: 0100 | D27: 0113 | E27: 8880080140 | F27: 244 | G27: 0 | H27: 0 | I27: 0 | J27: 0
A28: Исполнение судебных актов | B28: 010 | C28: 0100 | D28: 0113 | E28: 8880080140 | F28: 831 | G28: 682231.78 | H28: 682231.78 | I28: 0 | J28: 0
A29: Государственная регистрация актов гражданского состояния | B29: 010 | C29: 0100 | D29: 0113 | E29: 8880059300 | F29: 244 | G29: 2400 | H29: 800 | I29: 800 | J29: 800
A30: ИТОГО | G30: 5646331.78 | H30: =H24+H26+H28+H29 -> 2336931.78 | I30: =I24+I26+I28+I29 -> 1654700 | J30: =J24+J26+J28+J29 -> 1654700
A31: Заработная плата | B31: 010 | C31: 0200 | D31: 0203 | E31: 8880051180 | F31: 121 | G31: 327100 | H31: 105200 | I31: 108900 | J31: 113000
A32: Начисления на выплаты по оплате труда | B32: 010 | C32: 0200 | D32: 0203 | E32: 8880051180 | F32: 129 | G32: 98800 | H32: 31800 | I32: 32900 | J32: 34100
G33: 425900 | H33: =H31+H32 -> 137000 | I33: =I31+I32 -> 141800 | J33: =J31+J32 -> 147100
A34: Обеспечение пожарной безопасности | B34: 010 | C34: 0300 | D34: 0310 | E34: 0910110199 | F34: 244 | G34: 6000 | H34: 2000 | I34: 2000 | J34: 2000
A35: ИТОГО | G35: 6000 | H35: =H34 -> 2000 | I35: =I34 -> 2000 | J35: =J34 -> 2000
A36: Жилищно-коммунальное хозяйство | B36: 010 | C36: 0500 | D36: 0502 | E36: 0110110190 | F36: 244 | G36: 60000 | H36: 20000 | I36: 20000 | J36: 20000
A37: Благоустройство | B37: 010 | C37: 0500 | D37: 0503 | E37: 8880080190 | F37: 244 | G37: 0 | H37: 0 | I37: 0 | J37: 0
A38: ИТОГО | G38: 60000 | H38: =H36+H37 -> 20000 | I38: =I36+I37 -> 20000 | J38: =J36+J37 -> 20000
A39: Заработная плата | B39: 010 | C39: 0800 | D39: 0801 | E39: 8880084400 | F39: 111 | G39: 4096500 | H39: 1365500 | I39: 1365500 | J39: 1365500
A40: Прочие выплаты | B40: 010 | C40: 0800 | D40: 0801 | E40: 888004400 | F40: 112 | G40: 0 | H40: 0 | I40: 0 | J40: 0
A41: начисления на выплаты по оплате труда | B41: 010 | C41: 0800 | D41: 0801 | E41: 8880084400 | F41: 119 | G41: 1237200 | H41: 412400 | I41: 412400 | J41: 412400
A42: Прочие закупки товаров, работ, услуг для гос.нужд | B42: 010 | C42: 0800 | D42: 0801 | E42: 8880084400 | F42: 244 | G42: 0 | H42: 0 | I42: 0 | J42: 0
G43: 5333700 | H43: =H39+H41 -> 1777900 | I43: =I39+I41 -> 1777900 | J43: =J39+J41 -> 1777900
A44: Социальное обеспечение | B44: 010 | C44: 1000 | D44: 1001 | E44: 8880080120 | F44: 321 | G44: 594050 | H44: 228450 | I44: 182800 | J44: 182800
A45: ИТОГО | G45: 594050 | H45: =SUM(H44:H44) -> 228450 | I45: =SUM(I44:I44) -> 182800 | J45: =SUM(J44:J44) -> 182800
A46: ВСЕГО | G46: 20808323.34 | H46: =H11+H17+H19+H21+H23+H30+H33+H35+H43+H45+H38 -> 6887481.78 | I46: =I11+I17+I19+I21+I23+I30+I33+I35+I43+I45+I38 -> 6931916.45 | J46: =J11+J17+J19+J21+J23+J30+J33+J35+J43+J45+J38 -> 6988925.11
A48: Глава администрации Огоджинского сельсовета | C48: Э.С.Караханян

Sheet Лист3
